Cogmind - Beta 16.1 @@@ ROGUE MODE // 2026.04.14 @ 00:36:19 Player: Lazz Result: Destroyed by S-10 Pest with Light Assault Rifle Performance ------------- Evolutions (2) 1000 Regions Visited (5) 1000 Robots Destroyed (88) 440 Value Destroyed (2601) 2601 Prototype IDs (1) 20 Alien Tech Used (0) 0 Bonus (700) 700 TOTAL SCORE: 5761 Bonus ------- Entered Garrisons 200 Used RIF Installer 500 Cogmind --------- Core Integrity 0/550 Matter 290/300 Energy 140/140 System Corruption 26% Temperature Cool (0) Movement Treading (160) Location -8/Materials Parts ------- > --- POWER (1) -------- Light Deuterium Engine > --- PROPULSION (3) --- Light Treads Light Treads (fused) Flight Unit > --- UTILITY (3) ------ Large Storage Unit Improved Sensor Array System Shield > --- WEAPON (4) ------- Hammer Heavy Flail Great Maul > --- INVENTORY (15) --- Light Treads Titanium Leg Titanium Leg Cryofiber Web Improved Heat Sink Medium Matter Pod (100) Improved Sensor Array Improved Terrain Scan Processor Propulsion Shielding Improved Utility Shielding Relay Coupler [Grunt] (27) Relay Coupler [Grunt] (23) Relay Coupler [Sentry] (18) Light Assault Rifle Peak State ------------ > --- POWER ------------ Light Nuclear Core > --- PROPULSION ------- Light Treads Light Treads Aluminum Leg > --- UTILITY ---------- Large Storage Unit Improved Sensor Array Improved Signal Interpreter > --- WEAPON ----------- Light Assault Rifle Heavy Assault Rifle Minigun Katana > --- INVENTORY -------- Light Treads Armored Wheel Cryofiber Web Medium Matter Pod Structural Scanner Improved Sensor Array Propulsion Shielding Improved Utility Shielding Hacking Suite System Shield System Shield Light Assault Rifle Grenade Launcher Grenade Launcher Great Maul [Rating: 25] Favorites ----------- Power Ion Engine Engine Ion Engine Power Core Light Nuclear Core Propulsion Aluminum Leg Treads Light Treads Leg Aluminum Leg Wheel Armored Wheel Flight Unit Flight Unit Utility Large Storage Unit Device Improved Sensor Array Storage Large Storage Unit Processor Improved Signal Interpreter Hackware System Shield Protection Propulsion Shielding Weapon Light Assault Rifle Energy Gun Small Laser Ballistic Gun Light Assault Rifle Launcher Grenade Launcher Impact Weapon Great Maul Slashing Weapon Katana Build | -11 -10 -9 -8 -8 -8 ------- Run | Yrd Mat Mat Mat Gar Mat Slots Evolved 4 | . . 2 2 . . Power . | . . . . . . Propulsion 1 | . . 1 . . . Utility 1 | . . . 1 . . Weapon 2 | . . 1 1 . . Parts Attached 63 | 7 5 10 26 14 1 Power 7 | 1 . 2 2 1 1 Engine 6 | 1 . 2 1 1 1 Core 1 | . . . 1 . . Reactor . | . . . . . . Propulsion 21 | 2 2 3 8 6 . Treads 8 | . . . 5 3 . Leg 9 | 2 1 3 3 . . Wheel 1 | . . . . 1 . Hover . | . . . . . . Flight 3 | . 1 . . 2 . Utility 12 | 2 2 1 4 3 . Device 4 | 1 1 . 2 . . Storage 3 | 1 1 1 . . . Processor 1 | . . . 1 . . Hackware 3 | . . . 1 2 . Protection 1 | . . . . 1 . Artifact . | . . . . . . Weapon 23 | 2 1 4 12 4 . Energy Gun 2 | 1 . 1 . . . Energy Cannon . | . . . . . . Ballistic Gun 14 | 1 1 3 8 1 . Ballistic Cannon . | . . . . . . Launcher 2 | . . . 2 . . Special Weapon . | . . . . . . Impact Weapon 3 | . . . 1 2 . Slashing Weapon 2 | . . . 1 1 . Piercing Weapon . | . . . . . . Special Melee Weapon . | . . . . . . Unidentified Prototypes 1 | . 1 . . . . Corrupted Parts 1 | . . . . 1 . System Corruption 10 | . . . . 10 . Parts Lost 31 | . 2 5 7 17 . Power 3 | . . 1 . 2 . Propulsion 10 | . . 2 3 5 . Utility 3 | . 1 . . 2 . Weapon 15 | . 1 2 4 8 . Highest Loss Streak 11 | . 1 3 3 11 . To Critical Strikes . | . . . . . . Average Backups 11 | 2 7 10 14 11 12 Power . | . . . . . . Propulsion 1 | . . . 1 . 1 Utility 7 | . 3 4 8 10 10 Weapon 3 | 1 3 4 4 . 1 Tool/Special . | . . . . . . Unused Backups 18 | 1 2 4 2 1 8 Power . | . . . . . . Propulsion 2 | . 1 . . 1 . Utility 11 | . . 2 1 . 8 Weapon 5 | 1 1 2 1 . . Tool/Special . | . . . . . . Average Slot Usage (%) 90 | . 99 97 91 78 82 Engine 7 | . 14 10 6 3 1 Treads 6 | . . . 12 5 18 Leg 15 | . 28 30 11 . . Flight 2 | . . . . 10 9 Device 8 | . 13 11 8 5 3 Storage 10 | . 14 11 9 9 9 Processor 4 | . . . 8 7 . Hackware 1 | . . . . . 14 Energy Gun 4 | . 8 11 . . . Ballistic Gun 18 | . 19 21 27 5 . Impact Weapon 6 | . . . . 17 27 Slashing Weapon 2 | . . . 3 8 . Peak Build Rating 25 | 7 9 13 25 23 23 Average Rating 15 | 5 7 11 19 20 20 On Entrance 11 | . 7 8 13 20 20 Avg Prop Armor Cover (%) 4 | . . . 5 5 2 Naked Turns . | . . . . . . Heaviest Build 37 | 14 18 33 37 34 35 Greatest Support 60 | 20 20 30 60 60 40 Greatest Overweight (x) 9 | . . 1 2 9 . Average Overweight (x) . | . . . . 2 . Largest Inventory Capacity 15 | 8 10 15 15 15 15 Average Capacity 13 | 7 8 13 15 15 15 Most Carried 15 | 5 8 12 15 15 14 Average Carried 11 | 2 7 10 14 11 12 Final Capacity 15 | 8 10 15 15 15 15 Final Carried 15 | 5 8 12 15 13 14 Class Distribution -------------------- 32% | Scavenger-Skirmisher 29% | Scavenger-Mutant 19% | Mutant 18% | Skirmisher Dominant Class ---------------- Mutant | -10/Materials Skirmisher | -9/Materials Scavenger-Skirmisher | -8/Materials Scavenger-Mutant | -8/Garrison Scavenger-Mutant | -8/Materials Resources | -11 -10 -9 -8 -8 -8 ----------- Run | Yrd Mat Mat Mat Gar Mat Matter Collected 1763 | 366 63 327 641 261 105 Remotely . | . . . . . . Salvage Created 2789 | 190 170 949 1022 315 143 Parts 182 | 15 14 57 78 13 5 Haulers Intercepted 4 | . . 3 . . 1 Recyclers Shooed 1 | . . . . . 1 Parts Field Recycled . | . . . . . . Retrieved Matter . | . . . . . . Parts Self-Destructed . | . . . . . . Prevented . | . . . . . . Parts Restored . | . . . . . . Kills | -11 -10 -9 -8 -8 -8 ------- Run | Yrd Mat Mat Mat Gar Mat Combat Hostiles Destroyed 69 | . 7 20 32 10 . Melee 7 | . . . 1 6 . Guns 54 | . 7 20 27 . . AOE 5 | . . . 4 1 . Classes Destroyed 13 | 3 2 5 1 2 . Worker 5 | 2 . . 1 . 2 Builder 1 | . . . 1 . . Tunneler 4 | 3 . . 1 . . Hauler 4 | . . 3 . . 1 Recycler 1 | 1 . . . . . Operator 1 | . . 1 . . . Watcher 3 | . . 1 1 . 1 Swarmer 29 | . 5 5 16 3 . Grunt 23 | . 2 9 12 . . Brawler 2 | . . . . 2 . Duelist 3 | . . 1 . 2 . Sentry 10 | . . 5 4 1 . Programmer 2 | . . . . 2 . Best Kill Streak 7 | 4 3 5 7 3 1 Combat Bots Only 7 | . 3 5 7 3 . Max Kills in Single Turn 2 | 1 1 2 2 1 1 Gunslinging 1 | . . . 1 . . Exploded 1 | . . . 1 1 . Melee 1 | . . . 1 1 . Uniques/NPCs Destroyed . | . . . . . . Combat | -11 -10 -9 -8 -8 -8 -------- Run | Yrd Mat Mat Mat Gar Mat Hostile Shots Fired 431 | . 43 91 184 110 3 Missed 109 | . 14 19 44 32 . Hits 322 | . 29 72 140 78 3 Melee 12 | . . 1 . 11 . Projectile 310 | . 29 71 140 67 3 Critical Strikes 17 | . . 4 4 9 . Damage Taken 4194 | . 270 862 1713 1324 25 Core 763 | . 34 178 163 380 8 Absorbed by Shields . | . . . . . . Redirected to Shielding 9 | . . . . 9 . Core Remaining (%) 80 | 100 86 55 . . . Volleys Fired 180 | 14 21 54 77 14 . Largest 4 | 2 2 3 4 4 . Hottest 106 | 70 70 86 106 100 . Shots Fired 484 | 28 40 157 223 36 . Gun 471 | 28 40 157 215 31 . Cannon . | . . . . . . Launcher 13 | . . . 8 5 . Special . | . . . . . . Kinetic 389 | 14 27 104 213 31 . Thermal 82 | 14 13 53 2 . . Explosive 13 | . . . 8 5 . Electromagnetic . | . . . . . . Robot Hit Streak 37 | 11 7 23 37 8 . Robot Miss Streak 7 | 3 4 7 7 1 . Penetration Max . | . . . . . . Secondary Targets 11 | . . 4 7 . . Max Gunslinging Chain 1 | . . 1 1 . . Shots Hit Robots 358 | 21 22 106 148 55 6 Core Hits 153 | 9 12 45 74 11 2 Critical Kills 2 | . . . 1 1 . Critical Parts Destroyed 5 | . . . 1 4 . Critical Strikes 7 | . . . 2 5 . Destroy 2 | . . . 2 . . Smash 5 | . . . . 5 . Melee Attacks 54 | . . . 4 41 9 Impact 46 | . . . 2 35 9 Slashing 8 | . . . 2 6 . Piercing . | . . . . . . Sneak Attacks 4 | . . . . . 4 Combat Hostiles . | . . . . . . Follow-up Attacks 10 | . . . . 9 1 Damage Inflicted 5513 | 217 208 1336 2058 1400 294 Guns 3528 | 217 208 1336 1584 183 . Cannons . | . . . . . . Explosions 540 | . . . 433 107 . Melee 1434 | . . . 30 1110 294 Ramming 11 | . . . 11 . . Kinetic 2879 | 91 131 902 1572 183 . Thermal 649 | 126 77 434 12 . . Explosive 540 | . . . 433 107 . Electromagnetic . | . . . . . . Impact 1293 | . . . . 999 294 Slashing 141 | . . . 30 111 . Piercing . | . . . . . . Highest Corruption 26 | . . . 1 26 26 Average Corruption 8 | . . . 1 10 26 Corruption Purged . | . . . . . . Corruption Blocked . | . . . . . . Effects 43 | . . . 7 20 16 Message Errors 14 | . . . 2 7 5 Matter Fused 14 | . . . 2 6 6 Heat Flow Errors 6 | . . . 1 2 3 Energy Discharges 1 | . . . . 1 . Parts Rejected 1 | . . . 1 . . Parts Fused 3 | . . . 1 1 1 Data Loss (minor) 3 | . . . . 2 1 Alerts 1 | . . . . 1 . Overload Shots . | . . . . . . Overflow Damage 303 | . . . . 221 82 Projectiles . | . . . . . . Explosions 2 | . . . . 2 . Melee 301 | . . . . 219 82 Knockbacks 6 | . . . . 3 3 Impact 6 | . . . . 3 3 Kinetic . | . . . . . . Secondary . | . . . . . . Self-Inflicted Damage 100 | . . . . 100 . Shots 5 | . . . . 5 . Rammed 1 | . . . 1 . . Targets Rammed 1 | . . . 1 . . Kicked . | . . . . . . Crushed . | . . . . . . Highest Temperature 257 | 90 148 199 214 257 202 Average Temperature 63 | 37 72 57 71 73 90 Received Heat Transfer 1251 | . 48 357 711 135 . Siege Activations . | . . . . . . Martial Activations . | . . . . . . Shielding Activations . | . . . . . . Robots Disrupted . | . . . . . . Combat Hostiles . | . . . . . . Robots Corrupted 5 | . . . . 3 2 Combat Hostiles 3 | . . . . 3 . Parts Fried 3 | . . . . 2 1 Impact Corruptions 14 | . . . . 10 4 Robots Melted . | . . . . . . Combat Hostiles . | . . . . . . Parts Melted . | . . . . . . Heat Transferred 1592 | 370 222 975 25 . . Parts Sabotaged . | . . . . . . Parts Stolen . | . . . . . . Parts Stripped . | . . . . . . Power Chain Reactions . | . . . . . . Alert | -11 -10 -9 -8 -8 -8 ------- Run | Yrd Mat Mat Mat Gar Mat Maximum Alert Level 1 | . . 1 1 1 . Low Security (%) 64 | 100 100 75 51 22 100 Level 1 35 | . . 24 48 77 . Level 2 . | . . . . . . Level 3 . | . . . . . . Level 4 . | . . . . . . Level 5 . | . . . . . . High Security . | . . . . . . Max Security . | . . . . . . Peak Influence 364 | 10 60 258 355 364 172 Initial 210 | . . 5 93 210 172 Average 146 | 2 20 114 178 258 115 Influence Increases 2105 | 30 211 574 922 314 54 Destroy 0b10 Robot/C 1380 | . 140 400 640 200 . Destroy 0b10 Robot/NC 95 | 30 . 25 20 . 20 Destroy Leader 264 | . 20 118 122 . 4 Successful Hack 17 | . 6 1 10 . . Disable Machine 45 | . . . 15 . 30 Anti-Garrison Action 100 | . . . . 100 . Destroy Structure 54 | . . . 40 14 . Lose Combat Pursuer 150 | . 45 30 75 . . Influence Decreases 2059 | 30 197 366 820 284 362 Entered New Map 434 | . . 9 129 114 182 Time Decay 1172 | 30 177 307 478 . 180 Lost Part 303 | . 20 50 63 170 . Purge Threat 150 | . . . 150 . . Squads Dispatched 11 | . 2 4 4 . 1 Investigation 3 | . 1 . 2 . . Extermination . | . . . . . . Reinforcement 7 | . 1 4 1 . 1 Assault . | . . . . . . Garrison 1 | . . . 1 . . Intercept . | . . . . . . Searches Triggered . | . . . . . . Construction Impeded . | . . . . . . Haulers Reinforced . | . . . . . . Active Scanning Responses . | . . . . . . Cargo Convoy Interrupts . | . . . . . . Stealth | -11 -10 -9 -8 -8 -8 --------- Run | Yrd Mat Mat Mat Gar Mat Distress Signals 8 | . 1 2 5 . . Communications Jammed . | . . . . . . Distress Signals . | . . . . . . Times Spotted 104 | . 16 34 40 10 4 Peak Tracking Total 8 | . 5 6 8 3 1 Tactical Retreats 8 | . 2 1 5 . . Traps | -11 -10 -9 -8 -8 -8 ------- Run | Yrd Mat Mat Mat Gar Mat Traps Triggered 5 | . 1 . 1 3 . Indirectly . | . . . . . . Trap Hack Attempts . | . . . . . . Triggered . | . . . . . . Disarmed . | . . . . . . Reprogrammed . | . . . . . . Reused . | . . . . . . Traps Extracted . | . . . . . . Installed . | . . . . . . Triggered . | . . . . . . Machines | -11 -10 -9 -8 -8 -8 ---------- Run | Yrd Mat Mat Mat Gar Mat Machines Disabled 5 | . . . 1 2 2 Max in Single Turn 1 | . . . 1 1 1 Garrison Relay 2 | . . . . 2 . Machines Repaired . | . . . . . . Machines Dismantled . | . . . . . . Machines Sabotaged . | . . . . . . Overloaded Fab Kills . | . . . . . . Hacking | -11 -10 -9 -8 -8 -8 --------- Run | Yrd Mat Mat Mat Gar Mat Machines Accessed 15 | . 3 2 9 1 . Terminals 11 | . 3 1 6 1 . Fabricators . | . . . . . . Repair Stations . | . . . . . . Recycling Units 1 | . . . 1 . . Scanalyzers 2 | . . 1 1 . . Garrison Access 1 | . . . 1 . . Total Hacks 36 | . 5 8 22 1 . Successful 15 | . 1 5 8 1 . Failed 18 | . 3 2 13 . . Catastrophic 5 | . 1 . 4 . . Database Lockouts 3 | . 1 1 1 . . Manual 13 | . 2 3 8 . . Terminals 27 | . 5 4 17 1 . Fabricators . | . . . . . . Repair Stations . | . . . . . . Recycling Units 1 | . . . 1 . . Scanalyzers 7 | . . 4 3 . . Garrison Access 1 | . . . 1 . . Terminal Hacks 9 | . 1 1 6 1 . Record 1 | . . 1 . . . Robot Analysis 2 | . 1 . 1 . . Unreport Threat 1 | . . . 1 . . Hauler Manifests 1 | . . . 1 . . Zone Layout 3 | . . . 3 . . Patrol Navigation 1 | . . . . 1 . Fabricator Hacks . | . . . . . . Repair Station Hacks . | . . . . . . Recycling Unit Hacks 1 | . . . 1 . . Retrieve Components 1 | . . . 1 . . Scanalyzer 3 | . . 3 . . . Retrieve Study 3 | . . 3 . . . Garrison Access Hacks 1 | . . . 1 . . Unlock Access 1 | . . . 1 . . Unauthorized Hacks 1 | . . 1 . . . Terminals 1 | . . 1 . . . Botnet 1 | . . 1 . . . Fabricators . | . . . . . . Repair Stations . | . . . . . . Recycling Units . | . . . . . . Scanalyzers . | . . . . . . Garrison Access . | . . . . . . Data Cores Recovered . | . . . . . . Used . | . . . . . . Hacking Detections 12 | . 3 1 7 1 . Full Trace Events 2 | . . . 2 . . Feedback Events . | . . . . . . Feedback Blocked . | . . . . . . Robot Schematics Acquired . | . . . . . . Robots Built . | . . . . . . Authchips . | . . . . . . Time . | . . . . . . Total Robot Build Rating . | . . . . . . Part Schematics Acquired . | . . . . . . Parts Built . | . . . . . . Authchips . | . . . . . . Time . | . . . . . . Total Part Build Rating . | . . . . . . Part Studies Acquired 3 | . . 3 . . . Parts Repaired . | . . . . . . Time . | . . . . . . Parts Recycled . | . . . . . . Recycled Matter . | . . . . . . Retrieved Matter . | . . . . . . Retrieved Components 3 | . . . 3 . . Parts Scanalyzed . | . . . . . . Part Schematics Acquired . | . . . . . . Parts Damaged . | . . . . . . Bothacking | -11 -10 -9 -8 -8 -8 ------------ Run | Yrd Mat Mat Mat Gar Mat Used RIF Installer 1 | . . . . 1 . Robots Hacked . | . . . . . . Non-combat . | . . . . . . Combat . | . . . . . . Robot Hacks Applied . | . . . . . . Relay Couplers Released 6 | . . . . 6 . Machine Destruction 6 | . . . . 6 . Fabnet Peak Effective % . | . . . . . . Robots Rewired . | . . . . . . Allies Hacked . | . . . . . . Hacks Repelled . | . . . . . . Allies | -11 -10 -9 -8 -8 -8 -------- Run | Yrd Mat Mat Mat Gar Mat Total Allies . | . . . . . . Largest Group . | . . . . . . Highest-Rated Group . | . . . . . . Highest-Rated Ally . | . . . . . . Total Orders . | . . . . . . Ally Attacks . | . . . . . . Total Damage . | . . . . . . Kills . | . . . . . . Allies Corrupted . | . . . . . . Allies Melted . | . . . . . . Intel | -11 -10 -9 -8 -8 -8 ------- Run | Yrd Mat Mat Mat Gar Mat Active Infowar (turns) 3251 | 22 438 1005 1216 414 156 Sensors 1610 | . . . 1124 330 156 Structural 1472 | . 291 1005 92 84 . Seismic 169 | 22 147 . . . . Robot Analysis Total 2 | . 1 . 1 . . Derelict Logs Recovered . | . . . . . . Drone Launches . | . . . . . . Drone Recoveries . | . . . . . . Exploration | -11 -10 -9 -8 -8 -8 ------------- Run | Yrd Mat Mat Mat Gar Mat Turns Passed 3912 | 127 462 1005 1224 731 363 Spaces Moved 1695 | 57 306 482 465 238 147 Core 7 | 5 . . . 2 . Treads 540 | . . . 292 101 147 Legs 1013 | 52 306 482 173 . . Wheels 75 | . . . . 75 . Hover . | . . . . . . Flight 60 | . . . . 60 . Fastest Speed 50 | 50 120 105 105 120 160 Average Speed 158 | 113 120 138 177 219 160 Slowest Speed 600 | 120 120 175 245 600 160 Overloaded Moves . | . . . . . . Propulsion Burnouts . | . . . . . . Robots Hopped . | . . . . . . Potential Cave-ins . | . . . . . . Cave-ins Triggered . | . . . . . . Exploration Rate (%) 38 | 4 70 58 44 36 16 Regions Visited 5 Branch Regions . Pre-discovered Areas . | . . . . . . Known Exits Taken 1 | . . . 1 . . Unknown Exits Taken 3 | 1 1 1 . . . Scrap Searched . | . . . . . . Spaces Dug 2 | . . . 1 1 . Terrain Destroyed 56 | . . . 45 11 . Melee 2 | . . . 1 1 . Projectile . | . . . . . . AOE 54 | . . . 44 10 . Terrain Rammed . | . . . . . . Walls Destroyed . | . . . . . . Machines Disabled . | . . . . . . Actions | -11 -10 -9 -8 -8 -8 --------- Run | Yrd Mat Mat Mat Gar Mat Total 2503 | 91 368 707 718 358 261 Wait 426 | 6 23 147 114 33 103 Move 1691 | 56 305 481 465 237 147 Hop . | . . . . . . Pick Up 42 | 7 8 9 11 5 2 Fast Attach 34 | 6 . 5 14 8 1 Attach 18 | 1 3 2 4 8 . Detach 4 | . . . 3 1 . Swap 21 | . 3 3 10 4 1 Drop 28 | 1 5 6 15 1 . Fire 180 | 14 21 54 77 14 . Melee 41 | . . . 4 30 7 Ram . | . . . . . . Kick . | . . . . . . Crush 1 | . . . 1 . . Escape Stasis 17 | . . . . 17 . Rewire . | . . . . . . Trap . | . . . . . . Miscellaneous . | . . . . . . Route ------- -11/Scrapyard -10/Materials (discovered 3 exits: *Mat / [*Min x2]) -9/Materials (discovered 3 exits: *Mat x2 / [*Min]) -8/Materials (discovered 2 exits: [*Fac] / Gar) -8/Garrison -8/Materials History --------- Turn | Location | Event 3 | -11/Scrapyard | Discovered new exit (range 16) 128 | -11/Scrapyard | Entered Materials 193 | -10/Materials | Central database locked down 302 | -10/Materials | Discovered new exit (range 16) 320 | -10/Materials | Build established: Mutant 475 | -10/Materials | Discovered new exit (range 7) 572 | -10/Materials | Discovered new exit (range 11) 590 | -10/Materials | Entered another Materials area 590 | -9/Materials | Evolved 2 slots: Propulsion x1, Weapon x1 681 | -9/Materials | Central database locked down 882 | -9/Materials | Build established: Skirmisher 916 | -9/Materials | Discovered new exit (range 10) 1315 | -9/Materials | Discovered new exit (range 16) 1400 | -9/Materials | Lost 3 parts (1p1n1w) 1544 | -9/Materials | Discovered new exit (range 16) 1595 | -9/Materials | Entered another Materials area 1595 | -8/Materials | Evolved 2 slots: Utility x1, Weapon x1 1673 | -8/Materials | Build established: Scavenger-Skirmisher 1930 | -8/Materials | Destroyed 7 combat bots 2286 | -8/Materials | Lost 3 parts (1n2w) 2400 | -8/Materials | Central database locked down 2696 | -8/Materials | Discovered new exit (range 10) 2740 | -8/Materials | Garrison activated, responded to threat 2819 | -8/Materials | Identified exit to Garrison 2819 | -8/Materials | Entered Garrison 2879 | -8/Garrison | Core integrity fell below 50% 2921 | -8/Garrison | Core integrity fell below 20% 2954 | -8/Garrison | Lost 11 parts (1p3n1u6w) 2957 | -8/Garrison | Installed Relay Interface Framework 3017 | -8/Garrison | Triggered checkpoint 3105 | -8/Garrison | Garrison Relay disabled 3277 | -8/Garrison | Triggered checkpoint 3312 | -8/Garrison | System corruption reached 10% 3338 | -8/Garrison | Build established: Scavenger-Mutant 3403 | -8/Garrison | Triggered checkpoint 3447 | -8/Garrison | Garrison Relay disabled 3493 | -8/Garrison | Lost 3 parts (1u2w) 3527 | -8/Garrison | Discovered new exit (range 12) 3550 | -8/Garrison | Entered Materials 3913 | -8/Materials | Destroyed by S-10 Pest with Light Assault Rifle Last Messages --------------- 03758_ Acquired 3 matter. 03764_ TF Node disabled. 03777_ System corrupted: Matter fused (-8). 03796_ :,KEYZWYG2X:PNHI= 03811_ System corrupted: Heat flow error (+100). 03814_ T-07 Excavator is excavating. 03828_ 379J:P8GYZLPLA>0R&/Q4Z7YLHGI, 03853_ W-25 Informer destroyed. 03857_ Acquired Lgt. Deuterium Engine. 03859_ Acquired 25 matter. 03881_ System corrupted: Lgt. Treads fused. 03885_ O-16 Technician: "IFF HANDSHAKE FAILED. SECURING TERMINAL." 03895_ ALERT: Hostiles spotted, dispatching reinforcements to Terminal M005. 03899_ System corrupted: Matter fused (-10). 03902_ K-01 Serf collects debris. 03907_ Acquired Titanium Leg. 03912_ K-01 Serf collects debris. Map ----- +----------------------------------------------------+ | ?????????#=%# #????# # ! #??????????????? | | ?????????# =##+########## # #??????????????? | | ?????????# #? ! #??????????????? | | ?????????# #?######??????????????? | | ?????????###### ######## ##?????????????????????? | | ??????????????# ########+###????????????????????? | | ??????????????# ## #????????????????????? | | ??????????????# ## #????????????????????? | | ?????????????## ## #????????????????????? | | ?????????????# # #????????????????????? | | ?????????????# # #????????????????????? | | ?????????????# + ? #????????????????????? | | ?????????????# # ? #????????????????????? | | ?????????????## ## #????????????????????? | | ? ############ ?##############+###??????????????? | | """??????????????? | | ?"T"??????????????? | | ? ? ? "??????????? | | ??############ #########/##### ? "??????????? | | ?????????????# #???# k #???? "??????????? | | ?????????????# #???# #??? ""?????????? | | ?????????????# #???# """ #? ?????????? | | ##########???# #???# """ # ????????? | | # #???# #???# """ = s/ ????????????? | | # #???# #???# = s# ?????????????????? | | # #???# #???# @ # ???????????????? | | # #???# #???# #?####??????????????? | | # !#???# #???###########???????????????????? | | # #???# #?????????????????????????????????? | | # #???# #?????????????????????????????????? | | ?? #???# #?????????????????????????????????? | | ???? #####[#?????????????????????????????????? | | ??####+### !]%]#?????????????????????????????????? | | ??# *[][#?????????????????????????????????? | | ??# ! ! #?????????????????????????????????? | | ??# #?????????????????????????????????? | | ??####+### #?????????????????????????????????? | | ???? ## ##?????????????????????????????????? | | ??# !! ## #??????????????????????????????????? | | ??# !! ## #??????????????????????????????????? | | ??# ! ## #??????????????????????????????????? | | ??# ## #??????????????????????????????????? | | ??# """ !## #??????????????????????????????????? | | ??# """ ## #??????????????????????????????????? | | ??# """ # ??????????????????????????????????? | | ??# # ??????????????????????????????????? | | ??# ??? + T +?????????????????????????????????? | | ??#???? # #?????????????????????????????????? | | ??????? # #?????????????????????????????????? | | ??????? ###?###?????????????????????????????????? | +----------------------------------------------------+ Best States ------------- Heat Dissipation 31 Energy Generation 14 Energy Capacity 250 Matter Stores 300 Matter Capacity 300 Sight Range 16 Robot Scan Range 15 Terrain Scan Density 10 Propulsion Shielding 33 Evasion (%) 55 Recoil Reduction 3 Offensive Hacking 10 Defensive Hacking 10 Item Schematics ----------------- None Robot Schematics ------------------ None Fabricated ------------ Nothing Repaired ---------- Nothing Studied --------- Aluminum Leg | -9/Materials | Hacked Lgt. Assault Rifle | -9/Materials | Hacked Grenade Launcher | -9/Materials | Hacked Alien Tech Used ----------------- None Achievements -------------- None Challenges ------------ None Game ------ Seed StorageAdvancedPropulsion Manual? 0 Play Time 00:36:13 Cumulative 175.3 hours Start 2026.04.14 @ 00:02:05 End 2026.04.14 @ 00:36:19 Sessions 1 Manual Loads 0 Difficulty Rogue Special Mode None Game No. 248 Rogue 248 Adventurer 0 Explorer 0 Win Type - Total 2 Types 1/0/0/1/0/0/0/0/0/0 Lore% 71 Gallery% 59 Achievement% 45 Wizard Run 0 Options --------- Layout 2 ASCII 0 Keyboard 0 Movement Mouse Keybinds 0 Fullscreen 1 Font 16/SmallcapsGlow Map View 25x24 Zoom Use 98% Tactical HUD 1 Map Filters NONE Filters NONE Steam SD RUN: 93705559-9d52-4b7f-b2ee-63d5dcf21ef0